bitfinex/quotes_BTCUSD_20241206
["timestamp","ask_amount","ask_price","bid_price","bid_amount"]
[1733508480466,15.9916935,101350.0,101340.0,5.42544423]
[1733508480677,14.36530525,101350.0,101340.0,5.42593654]
[1733508480903,13.97109673,101350.0,101340.0,5.42593654]
[1733508481171,13.97109673,101350.0,101340.0,5.38717278]
[1733508481390,13.95136273,101350.0,101340.0,5.01557288]
[1733508481599,13.51709554,101350.0,101340.0,5.53147288]
[1733508481805,11.86964916,101350.0,101340.0,5.59587455]
[1733508482019,11.47544062,101350.0,101340.0,5.59587455]
[1733508482233,11.47544062,101350.0,101340.0,5.56106563]
[1733508482464,11.37677062,101350.0,101340.0,4.35431836]
[1733508482680,11.37677062,101350.0,101340.0,3.98237161]
[1733508482890,10.19408686,101350.0,101340.0,4.48525959]
[1733508483105,9.7998784,101350.0,101340.0,4.12625959]
[1733508483315,9.40467018,101350.0,101340.0,4.59570634]
[1733508483494,9.40467018,101350.0,101340.0,4.73670634]
[1733508483495,8.90070953,101350.0,101340.0,4.73670634]
[1733508483753,8.90070953,101350.0,101340.0,4.89570634]
[1733508483974,8.90070953,101350.0,101340.0,4.88670634]
[1733508484178,8.90070953,101350.0,101340.0,4.8941303]
[1733508484391,8.86124153,101350.0,101340.0,4.9121303]
[1733508484605,8.86124153,101350.0,101340.0,5.2539148]
[1733508484606,8.80203953,101350.0,101340.0,5.2539148]
[1733508484858,8.80203953,101350.0,101340.0,3.73502538]
[1733508485167,8.80203953,101350.0,101340.0,3.89622337]
[1733508485367,8.80203953,101350.0,101340.0,1.65397522]
[1733508485573,8.88013953,101350.0,101340.0,1.26041101]
[1733508485778,8.88013953,101350.0,101340.0,1.24451101]
[1733508485950,8.88013953,101350.0,101340.0,1.19451101]
[1733508486155,8.88013953,101350.0,101340.0,1.25351101]
[1733508486307,8.88013953,101350.0,101340.0,1.24451101]
[1733508486523,8.88013953,101350.0,101340.0,1.20507301]
[1733508486723,8.88013953,101350.0,101340.0,1.25351801]
[1733508487039,8.88013953,101350.0,101340.0,1.5611698]
[1733508487243,8.88013953,101350.0,101340.0,1.5907728]
[1733508487442,8.88013953,101350.0,101340.0,1.7317728]
[1733508487624,8.88013953,101350.0,101340.0,1.7407728]
[1733508488019,8.76257153,101350.0,101340.0,1.58998184]
[1733508488229,8.04336953,101350.0,101340.0,1.49856776]
[1733508488545,8.04336953,101350.0,101340.0,1.92548577]
[1733508488706,8.04336953,101350.0,101340.0,1.85188577]
[1733508488903,8.16966953,101350.0,101340.0,0.8164213]
[1733508489107,8.16966953,101350.0,101340.0,0.96594582]
[1733508489309,8.16966953,101350.0,101340.0,0.61065753]
[1733508489554,8.16966953,101350.0,101340.0,0.59708475]
[1733508489960,8.16966953,101350.0,101340.0,0.60608475]
[1733508490191,8.16966953,101350.0,101340.0,0.59708475]
[1733508490528,8.16966953,101350.0,101340.0,0.86683326]
[1733508490689,8.16966953,101350.0,101340.0,0.89324626]
[1733508490891,8.16966953,101350.0,101340.0,1.06516626]
[1733508491089,8.16966953,101350.0,101340.0,0.89324626]
[1733508491299,7.87569627,101350.0,101340.0,1.38078426]
[1733508491507,7.63897249,101350.0,101340.0,1.40928762]
[1733508491662,7.63097249,101350.0,101340.0,1.40928762]
[1733508492278,7.61123849,101350.0,101340.0,1.41228762]
[1733508492540,7.52935371,101350.0,101340.0,1.40328762]
[1733508492752,7.52935371,101350.0,101340.0,1.86089075]
[1733508492966,7.49380371,101350.0,101340.0,2.86378017]
[1733508493164,7.4893473,101350.0,101340.0,1.86089075]
[1733508493391,5.7934018,101350.0,101340.0,2.05341489]
[1733508493604,5.35587363,101350.0,101340.0,3.60011023]
[1733508493807,5.40587363,101350.0,101340.0,3.20130623]
[1733508494006,5.28517363,101350.0,101340.0,6.86886254]
[1733508494229,3.70825162,101350.0,101340.0,5.99885305]
[1733508494427,3.60958162,101350.0,101340.0,5.74535305]
[1733508494632,3.20536778,101350.0,101340.0,5.74535305]
[1733508494856,3.20536778,101350.0,101340.0,5.82777504]
[1733508495066,3.20536778,101350.0,101340.0,5.89068086]
[1733508495473,1.52977585,101350.0,101340.0,5.57794904]
[1733508495754,1.125562,101350.0,101340.0,5.46243704]
[1733508495936,0.33710554,101350.0,101340.0,6.24416629]
[1733508496163,0.00146145,101380.0,101370.0,0.569729]
[1733508496407,0.00151917,101380.0,101370.0,4.11762926]
[1733508496613,0.04751917,101380.0,101370.0,4.11762926]
[1733508497048,0.03209917,101380.0,101370.0,2.15096026]
[1733508497261,0.11289917,101380.0,101370.0,2.15096026]
[1733508497476,0.11289917,101380.0,101370.0,2.15996026]
[1733508498093,0.11289917,101380.0,101370.0,2.16896026]
[1733508498721,0.00290722,101390.0,101380.0,0.1]
[1733508498955,0.00290722,101390.0,101380.0,4.47706741]
[1733508499161,0.00290722,101390.0,101380.0,4.38674651]
[1733508499365,0.00290722,101390.0,101380.0,3.79266051]
[1733508499567,0.00290722,101390.0,101380.0,3.8211161]
[1733508499775,0.00290722,101390.0,101380.0,4.19412584]
[1733508500201,0.00290722,101390.0,101380.0,3.21161584]
[1733508500411,0.14922042,101400.0,101390.0,0.55]
[1733508500620,0.14409584,101400.0,101390.0,7.06602115]
[1733508500831,0.14409584,101400.0,101390.0,5.65947952]
[1733508501035,0.14409584,101400.0,101390.0,6.3673067]
[1733508501247,0.14405584,101400.0,101390.0,1.38631228]
[1733508501448,0.14405584,101400.0,101390.0,5.0600321]
[1733508502020,0.14405584,101400.0,101390.0,5.09051011]
[1733508502225,0.14405584,101400.0,101390.0,6.59015452]
[1733508502506,0.04545584,101400.0,101390.0,6.57658871]
[1733508502697,0.04545584,101400.0,101390.0,6.14468934]
[1733508502899,0.04545584,101400.0,101390.0,5.92331934]
[1733508503105,0.00210604,101410.0,101400.0,0.1]
[1733508503307,1.70345604,101420.0,101410.0,0.55986]
[1733508503510,1.70345604,101420.0,101410.0,3.5191151]
[1733508503511,1.7036292,101420.0,101410.0,3.5191151]
[1733508503886,1.7036292,101420.0,101410.0,3.55669311]
[1733508504014,1.7833292,101420.0,101410.0,2.26676627]
[1733508504224,1.7833292,101420.0,101410.0,1.65677627]
[1733508504457,1.7833292,101420.0,101410.0,1.08428651]
[1733508504880,1.7833292,101420.0,101410.0,1.04328651]
[1733508505156,1.7833292,101420.0,101410.0,1.09328651]
[1733508505320,1.7833292,101420.0,101410.0,1.03428651]
[1733508505491,1.7833292,101420.0,101410.0,0.30986]
[1733508505695,1.7833292,101420.0,101410.0,0.31886]
[1733508505895,1.7833292,101420.0,101410.0,0.648809]
[1733508506101,1.7833292,101420.0,101410.0,0.657809]
[1733508506317,1.7833292,101420.0,101410.0,0.75783851]
[1733508506539,1.7833292,101420.0,101410.0,0.74883851]
[1733508506895,0.099,101410.0,101390.0,0.009862]
[1733508507108,0.081,101400.0,101390.0,0.309862]
[1733508507320,0.081,101400.0,101390.0,0.65802051]
[1733508507528,0.081,101400.0,101390.0,1.22560551]
[1733508507750,0.081,101400.0,101390.0,1.59297351]
[1733508508357,0.081,101400.0,101390.0,1.59497351]
[1733508508559,0.03358,101410.0,101400.0,0.45]
[1733508508771,0.03227327,101410.0,101400.0,1.03429951]
[1733508508982,0.03227327,101410.0,101400.0,0.99724551]
[1733508509182,0.03227327,101410.0,101400.0,0.68561951]
[1733508509417,0.03227327,101410.0,101400.0,0.73867851]
[1733508509876,0.03227327,101410.0,101400.0,0.76366851]
[1733508510055,0.03227327,101410.0,101400.0,0.56889051]
[1733508510056,0.03327327,101410.0,101400.0,0.56889051]
[1733508510295,0.03327327,101410.0,101400.0,0.73176851]
[1733508510515,0.03427327,101410.0,101400.0,0.80036651]
[1733508510707,0.002,101410.0,101400.0,0.57689051]
[1733508510910,0.002,101410.0,101400.0,1.75790451]
[1733508511508,0.002,101410.0,101400.0,1.46120551]
[1733508511942,0.002,101410.0,101400.0,0.62689051]
[1733508512147,0.002,101410.0,101400.0,1.66908151]
[1733508512346,0.002,101410.0,101400.0,1.21374251]
[1733508512575,0.052,101410.0,101400.0,1.10907151]
[1733508514345,0.1332,101410.0,101400.0,0.326861]
[1733508515642,0.1822,101410.0,101400.0,0.009737]
[1733508515843,0.28309801,101410.0,101390.0,0.32071003]
[1733508516170,0.28309801,101410.0,101390.0,0.33057203]
[1733508516369,0.28209801,101410.0,101390.0,0.32071003]
[1733508516619,0.28209801,101410.0,101400.0,0.006]
[1733508516802,0.05,101400.0,101390.0,0.3]
[1733508517099,0.15002951,101400.0,101390.0,0.309862]
[1733508517250,0.15002951,101400.0,101380.0,0.019726]
[1733508517251,0.0257,101390.0,101380.0,0.009863]
[1733508517459,0.10002951,101400.0,101390.0,0.3]
[1733508517693,0.1008685,101410.0,101390.0,0.319724]
[1733508517945,0.1008685,101410.0,101400.0,0.009861]
[1733508517946,0.20089801,101410.0,101400.0,0.009861]
[1733508518099,0.05,101400.0,101390.0,0.019724]
[1733508518300,0.15002951,101400.0,101390.0,0.02371011]
[1733508518479,0.15002951,101400.0,101390.0,0.022724]
[1733508518704,0.15002951,101400.0,101390.0,0.162862]
[1733508519083,0.22612951,101400.0,101390.0,0.003]
[1733508519282,0.05,101390.0,101380.0,0.3]
[1733508519492,0.05,101390.0,101370.0,0.0017334]
[1733508519493,0.1327,101380.0,101370.0,0.0017334]
[1733508519859,0.23272951,101380.0,101370.0,0.0115974]
[1733508519987,0.1327,101380.0,101350.0,0.20606199]
[1733508520238,0.1327,101380.0,101360.0,0.256386]
[1733508520407,0.1327,101380.0,101340.0,0.031734]
[1733508520408,0.23272951,101370.0,101340.0,0.031734]
[1733508520606,0.05,101360.0,101340.0,0.04165872]
[1733508520802,0.15002951,101360.0,101340.0,0.02152572]
[1733508521073,0.0827,101370.0,101360.0,0.009865]
[1733508521192,0.1327,101370.0,101350.0,0.009866]
[1733508521391,0.05,101360.0,101340.0,0.01165772]
[1733508521611,0.05,101350.0,101340.0,0.00179172]
[1733508521809,0.10002951,101350.0,101340.0,0.00879172]
[1733508522460,0.10002951,101350.0,101340.0,0.00179172]
[1733508523458,0.10002951,101350.0,101340.0,0.00379172]
[1733508523459,0.10102951,101350.0,101340.0,0.00379172]
[1733508524285,0.37259787,101350.0,101340.0,0.00379172]
[1733508524469,0.05,101330.0,101290.0,0.3]
[1733508524683,0.10002951,101320.0,101310.0,0.00057841]
[1733508525101,0.18142951,101320.0,101310.0,0.00057841]
[1733508525313,0.25442951,101320.0,101310.0,0.00057841]
[1733508526097,0.23242951,101320.0,101310.0,0.00057841]
[1733508526543,0.18342951,101320.0,101310.0,0.00257841]
[1733508526744,0.051,101320.0,101310.0,0.01044841]
[1733508527115,0.051,101320.0,101310.0,0.01144841]
[1733508527320,0.051,101320.0,101310.0,0.01044841]
[1733508527531,0.001,101320.0,101310.0,0.16044841]
[1733508527777,0.051,101320.0,101310.0,0.41651841]
[1733508527948,0.17542951,101320.0,101310.0,0.15057841]
[1733508528127,0.24842951,101320.0,101310.0,0.00057841]
[1733508528327,0.24942951,101320.0,101310.0,0.00057841]
[1733508528525,0.24942951,101320.0,101310.0,0.01044841]
[1733508528526,0.1264,101320.0,101310.0,0.01044841]
[1733508528796,0.15502951,101320.0,101310.0,0.00057841]
[1733508528954,0.10502951,101320.0,101310.0,0.00057841]
[1733508529172,0.10702951,101320.0,101310.0,0.00057841]
[1733508529597,0.10702951,101320.0,101280.0,0.2146096]
[1733508529598,0.05,101300.0,101280.0,0.2146096]
[1733508529801,0.15002951,101300.0,101280.0,0.0116096]
[1733508530002,0.05,101300.0,101290.0,0.009872]
[1733508530172,0.05,101300.0,101290.0,0.156872]
[1733508530383,0.15002951,101300.0,101280.0,0.0017366]
[1733508531333,0.05,101290.0,101280.0,0.0017366]
[1733508532683,0.17426358,101290.0,101280.0,0.0017366]
[1733508532888,0.05,101270.0,101260.0,0.001737]
[1733508533091,0.10002951,101270.0,101260.0,0.001737]
[1733508533291,0.05,101260.0,101210.0,0.38713838]
[1733508533494,0.05,101270.0,101230.0,0.3]
[1733508533712,0.05,101290.0,101240.0,2.77941851]
[1733508533926,0.05,101290.0,101250.0,2.578432]
[1733508534139,0.05,101290.0,101260.0,0.10002951]
[1733508534370,0.001,101270.0,101260.0,0.10002951]
[1733508534570,0.15002951,101290.0,101240.0,0.50317343]
[1733508534756,0.05,101290.0,101260.0,0.15]
[1733508534983,0.05,101290.0,101260.0,0.25002951]
[1733508535163,0.05,101290.0,101280.0,0.15]
[1733508535796,0.1293,101300.0,101280.0,0.15]
[1733508536013,0.0979,101310.0,101280.0,0.15]
[1733508536225,0.19792951,101310.0,101270.0,0.15]
[1733508536426,0.19792951,101310.0,101280.0,0.15]
[1733508536427,0.15002951,101300.0,101280.0,0.15]
[1733508536839,0.09847688,101310.0,101280.0,0.151]
[1733508537040,0.19850639,101310.0,101280.0,0.151]
[1733508537249,0.19850639,101310.0,101280.0,0.15]
[1733508537385,0.00157688,101310.0,101300.0,0.15]
[1733508537588,0.05157688,101310.0,101300.0,0.15]
[1733508537949,0.05057688,101310.0,101300.0,0.15]
[1733508538146,0.05157688,101310.0,101300.0,0.15]
[1733508538353,0.05057688,101310.0,101300.0,0.15]
[1733508538558,8.8e-07,101310.0,101300.0,0.55002951]
[1733508538762,8.8e-07,101310.0,101300.0,0.62942951]
[1733508540374,8.8e-07,101310.0,101300.0,0.63242951]
[1733508540626,8.8e-07,101310.0,101300.0,0.64403871]
[1733508540869,8.8e-07,101310.0,101300.0,0.65203871]
[1733508541332,9.8e-07,101340.0,101330.0,0.009868]
[1733508541570,9.8e-07,101340.0,101330.0,1.48915394]
[1733508541824,9.8e-07,101340.0,101330.0,0.56007094]
[1733508542332,9.8e-07,101340.0,101330.0,0.63977094]
[1733508542559,9.8e-07,101340.0,101330.0,0.71477094]
[1733508543111,9.8e-07,101340.0,101330.0,0.71277094]
[1733508543310,0.05,101390.0,101380.0,0.009863]
[1733508543538,0.05,101390.0,101380.0,0.019726]
[1733508543780,0.15002951,101390.0,101380.0,0.009863]
[1733508544679,0.15020262,101390.0,101380.0,0.009863]
[1733508544876,0.15020262,101390.0,101380.0,0.011863]
[1733508545833,0.10020262,101390.0,101380.0,0.011863]
[1733508546106,0.00017311,101390.0,101380.0,0.011863]
[1733508546298,0.00317311,101390.0,101380.0,0.011863]
[1733508546449,0.00317311,101390.0,101380.0,0.009863]
[1733508546659,0.05017311,101390.0,101380.0,0.009863]
[1733508546860,0.05217311,101390.0,101380.0,0.009863]
[1733508547074,0.05117311,101390.0,101380.0,0.009863]
[1733508547483,0.05117311,101390.0,101380.0,2.09463651]
[1733508547484,1.1e-07,101390.0,101380.0,2.09463651]
[1733508547695,1.1e-07,101390.0,101380.0,0.63519251]
[1733508547964,0.0508685,101410.0,101390.0,1.747437]
[1733508547965,5e-07,101410.0,101390.0,1.747437]
[1733508548188,1.70345604,101420.0,101410.0,0.15986]
[1733508548189,1.68373654,101420.0,101410.0,0.15986]
[1733508548364,1.68373654,101420.0,101410.0,1.82468251]
[1733508548540,1.68373654,101420.0,101410.0,0.15986]
[1733508548924,1.68373654,101420.0,101410.0,0.281835]
[1733508549137,1.68373654,101420.0,101410.0,0.00986]
[1733508549338,1.78376605,101420.0,101400.0,0.009861]
[1733508549538,0.15002951,101410.0,101390.0,0.009862]
[1733508549766,0.15002951,101410.0,101400.0,0.009861]
[1733508550164,0.15102951,101410.0,101400.0,0.009861]
[1733508550385,0.05,101410.0,101400.0,0.009861]
[1733508550543,1.68473654,101420.0,101410.0,0.00986]
[1733508550764,1.68473654,101420.0,101410.0,0.15986]
[1733508551164,1.68473654,101420.0,101410.0,0.16452756]
[1733508551573,1.68473654,101420.0,101410.0,0.80413656]
[1733508551777,1.73473654,101420.0,101410.0,0.45122456]
[1733508551985,1.73373654,101420.0,101410.0,0.43670456]
[1733508552194,1.68373654,101420.0,101410.0,0.43670456]
[1733508552401,1.73373654,101420.0,101410.0,0.43670456]
[1733508552580,1.73460564,101420.0,101410.0,0.43670456]
[1733508552914,1.73460564,101420.0,101410.0,0.01652756]
[1733508553109,1.73660564,101420.0,101410.0,0.01652756]
[1733508553589,1.67270038,101420.0,101410.0,0.26455707]
[1733508553790,1.67070038,101420.0,101410.0,0.73503307]
[1733508554000,1.67170038,101420.0,101410.0,0.74403307]
[1733508554208,1.67070038,101420.0,101410.0,0.73503307]
[1733508554623,1.67070038,101420.0,101410.0,1.23613307]
[1733508554624,1.49700438,101420.0,101410.0,1.23613307]
[1733508554830,1.49700438,101420.0,101410.0,1.18013307]
[1733508555279,1.49700438,101420.0,101410.0,1.18413307]
[1733508555702,1.41052964,101420.0,101410.0,1.18413307]
[1733508555908,1.41052964,101420.0,101410.0,1.23413307]
[1733508556121,1.40929964,101420.0,101410.0,1.2601593]
[1733508556346,1.41029964,101420.0,101410.0,1.16613307]
[1733508556557,1.40929964,101420.0,101410.0,1.16613307]
[1733508556990,1.41029964,101420.0,101410.0,1.17513307]
[1733508557201,1.40829964,101420.0,101410.0,1.15713307]
[1733508557624,1.40929964,101420.0,101410.0,1.16613307]
[1733508558281,1.41029964,101420.0,101410.0,1.17513307]
[1733508558471,1.41129964,101420.0,101410.0,0.76203307]
[1733508558681,1.41129964,101420.0,101410.0,1.01341607]
[1733508558894,1.41029964,101420.0,101410.0,1.00441607]
[1733508559097,1.41029964,101420.0,101410.0,0.99974851]
[1733508559301,1.41129964,101420.0,101410.0,1.00874851]
[1733508559502,1.41129964,101420.0,101410.0,0.50793551]
[1733508559717,1.41029964,101420.0,101410.0,0.49893551]
[1733508559936,1.41029964,101420.0,101410.0,0.388906]
[1733508559937,1.45929964,101420.0,101410.0,0.388906]
[1733508560163,1.40929964,101420.0,101410.0,0.01786]
[1733508560370,1.45929964,101420.0,101410.0,0.017]
[1733508560604,1.45929964,101420.0,101370.0,0.1263]
[1733508560605,0.05,101410.0,101370.0,0.1263]
[1733508560861,0.05,101410.0,101380.0,0.23826151]
[1733508561059,0.05,101410.0,101390.0,0.131384]
[1733508561264,0.05,101410.0,101390.0,0.10002951]
[1733508562612,0.0462,101410.0,101400.0,0.15]
[1733508563253,0.0472,101410.0,101400.0,0.15]
[1733508563659,0.0472,101410.0,101400.0,0.156]
[1733508563875,0.002,101410.0,101400.0,0.25602951]
[1733508564103,0.002,101410.0,101400.0,0.39357351]
[1733508564638,0.002,101410.0,101400.0,0.35760451]
[1733508564919,0.002,101410.0,101400.0,0.156]
[1733508565166,0.002,101410.0,101400.0,0.157]
[1733508565897,0.002,101410.0,101400.0,0.33077451]
[1733508566618,0.002,101410.0,101400.0,0.33683951]
[1733508566856,0.002,101410.0,101400.0,0.23683951]
[1733508567561,0.002,101410.0,101400.0,0.23686902]
[1733508567781,1.40087687,101420.0,101400.0,0.23686902]
[1733508567985,1.40087687,101420.0,101400.0,0.10002951]
[1733508568189,1.40087687,101420.0,101390.0,0.005537]
[1733508568419,1.59710638,101420.0,101390.0,0.001737]
[1733508568870,0.0462,101410.0,101400.0,0.001]
[1733508569312,0.14622951,101410.0,101400.0,0.001]
[1733508569518,0.14622951,101410.0,101390.0,0.001737]
[1733508569686,0.14622951,101410.0,101390.0,0.003]
[1733508570039,0.15002951,101410.0,101350.0,0.10293238]
[1733508570195,1.40087687,101420.0,101400.0,0.10002951]
[1733508570370,1.40087687,101420.0,101410.0,0.254399]
[1733508570571,1.40087687,101420.0,101390.0,1.403909]
[1733508570762,1.40087687,101420.0,101390.0,1.50393851]
[1733508570963,0.001,101410.0,101400.0,1.82424]
[1733508571166,0.001,101410.0,101400.0,0.530401]
[1733508571365,1.40087687,101420.0,101410.0,0.15]
[1733508571571,1.40087687,101420.0,101410.0,0.363069]
[1733508571810,1.40087687,101420.0,101410.0,0.302769]
[1733508572019,1.40087687,101420.0,101410.0,0.283072]
[1733508572330,1.40087687,101420.0,101410.0,0.28754109]
[1733508572538,1.40287687,101420.0,101410.0,0.16250109]
[1733508572686,1.40287687,101420.0,101410.0,0.318322]
[1733508572889,1.40287687,101420.0,101410.0,0.296721]
[1733508573134,1.40287687,101420.0,101410.0,0.196721]
[1733508573289,1.40287687,101420.0,101400.0,0.15]
[1733508573495,1.40287687,101420.0,101410.0,0.75172]
[1733508573698,1.40287687,101420.0,101410.0,0.68365]
[1733508573909,1.40287687,101420.0,101410.0,0.642708]
[1733508574134,1.40287687,101420.0,101410.0,0.542708]
[1733508574418,1.40087687,101420.0,101410.0,0.492708]
[1733508574619,1.40087687,101420.0,101390.0,0.10002951]
[1733508574840,1.40087687,101420.0,101400.0,0.41144]
[1733508575419,1.40087687,101420.0,101400.0,0.35145]
[1733508575626,1.40087687,101420.0,101400.0,0.597654]
[1733508575824,1.40087687,101420.0,101400.0,0.197175]
[1733508576053,1.40187687,101420.0,101400.0,1.262845]
[1733508576871,1.40287687,101420.0,101410.0,0.004]
[1733508577143,1.40287687,101420.0,101410.0,0.159793]
[1733508577353,1.40287687,101420.0,101400.0,0.985663]
[1733508577550,1.40287687,101420.0,101410.0,0.15]
[1733508577770,1.40187687,101420.0,101410.0,0.15]
[1733508577930,1.40387687,101420.0,101410.0,0.154]
[1733508578303,1.40187687,101420.0,101410.0,0.15]
[1733508578504,1.40287687,101420.0,101400.0,0.155]
[1733508578743,1.50287687,101420.0,101410.0,0.002]
[1733508578967,1.55290638,101420.0,101410.0,0.002]
[1733508579445,0.05,101410.0,101400.0,0.005]
[1733508579630,0.10002951,101410.0,101400.0,0.005]
[1733508579840,0.10002951,101410.0,101360.0,0.22754526]
[1733508579841,0.05,101390.0,101350.0,0.001737]
[1733508580038,0.10002951,101380.0,101350.0,0.001737]
[1733508580392,0.10002951,101380.0,101360.0,0.307291]
[1733508580596,0.10002951,101380.0,101350.0,0.001737]
[1733508580597,0.15002951,101380.0,101350.0,0.001737]
[1733508581047,0.0475,101390.0,101350.0,0.10176651]
[1733508581240,0.00017308,101390.0,101360.0,0.213088]
[1733508581469,0.001,101380.0,101360.0,0.31311751]
[1733508581675,0.001,101380.0,101370.0,0.439568]
[1733508581854,0.002,101380.0,101370.0,0.405603]
[1733508582051,0.002,101380.0,101370.0,0.218563]
[1733508582255,0.001,101380.0,101370.0,0.218563]
[1733508582457,0.001,101380.0,101370.0,0.368563]
[1733508582919,0.00017308,101390.0,101370.0,0.368563]
[1733508583169,0.00017308,101390.0,101380.0,0.15]
[1733508583399,0.00017308,101390.0,101380.0,0.266642]
[1733508583400,0.00117308,101390.0,101380.0,0.266642]
[1733508583665,0.00017308,101390.0,101380.0,0.266642]
[1733508584440,8e-08,101390.0,101380.0,0.73695493]
[1733508584657,8e-08,101390.0,101380.0,0.15]
[1733508585160,8e-08,101390.0,101380.0,0.152]
[1733508585837,8e-08,101390.0,101380.0,0.15]
[1733508586470,0.00100008,101390.0,101380.0,0.153]
[1733508586919,0.00100008,101390.0,101380.0,0.361223]
[1733508587148,8e-08,101390.0,101380.0,0.004]
[1733508587377,0.15002959,101390.0,101380.0,0.004]
[1733508587646,0.15102959,101390.0,101380.0,0.007]
[1733508588118,0.15102959,101390.0,101380.0,0.009]
[1733508588585,0.15102959,101390.0,101380.0,0.157]
[1733508588857,0.15602959,101390.0,101380.0,0.157]
[1733508589079,0.15502959,101390.0,101380.0,0.1517374]
[1733508589302,0.15589829,101390.0,101380.0,0.1517374]
[1733508589566,0.20589829,101390.0,101380.0,0.0017374]
[1733508589796,0.15589829,101390.0,101380.0,0.0017374]
[1733508590052,0.16113124,101390.0,101380.0,0.0017374]
[1733508590310,0.10989829,101390.0,101380.0,0.0017374]
[1733508590546,0.10989829,101390.0,101380.0,0.77948993]
[1733508590547,0.00986878,101390.0,101380.0,0.77948993]
[1733508590762,0.00986878,101390.0,101380.0,0.3994554]
[1733508591256,0.00986878,101390.0,101380.0,0.1517374]
[1733508591682,0.00986878,101390.0,101380.0,0.6092101]
[1733508591683,0.00986878,101390.0,101380.0,0.6293911]
[1733508591910,0.00486878,101390.0,101380.0,0.4338581]
[1733508592130,0.00486878,101390.0,101380.0,0.3976804]
[1733508592751,0.05086878,101390.0,101380.0,0.3976804]
[1733508592956,0.05036878,101390.0,101380.0,0.3976804]
[1733508593160,0.05036878,101390.0,101380.0,0.1557374]
[1733508593366,0.05036878,101390.0,101380.0,0.1517374]
[1733508593708,0.05036878,101390.0,101380.0,0.4067864]
[1733508593929,0.05036878,101390.0,101380.0,0.4107864]
[1733508594146,0.05036878,101390.0,101380.0,0.3028424]
[1733508594370,0.15039829,101390.0,101380.0,0.1557374]
[1733508594806,0.19506496,101390.0,101380.0,0.37979883]
[1733508595027,0.24609775,101390.0,101380.0,0.0057374]
[1733508595320,0.24486496,101390.0,101380.0,0.0057374]
[1733508595523,0.32006496,101390.0,101380.0,0.0057374]
[1733508595742,0.17009447,101390.0,101380.0,0.0017374]
[1733508595961,0.17132746,101390.0,101380.0,0.0017374]
[1733508596184,0.17009447,101390.0,101380.0,0.0057374]
[1733508596741,0.17009447,101390.0,101380.0,0.0017374]
[1733508596956,0.05,101400.0,101380.0,0.0017374]
[1733508597165,0.15002951,101390.0,101380.0,0.00191048]
[1733508597829,0.15202951,101390.0,101380.0,0.00191048]
[1733508598060,0.10202951,101390.0,101380.0,0.00191048]
[1733508598833,0.18382951,101390.0,101380.0,0.00191048]
[1733508599251,0.18506244,101390.0,101380.0,0.00191048]
[1733508600486,0.18382951,101390.0,101380.0,0.00191048]
[1733508600691,0.18506244,101390.0,101380.0,0.00191048]
[1733508601607,0.18593114,101390.0,101380.0,0.00191048]
[1733508602283,0.0028687,101390.0,101380.0,0.00191048]
[1733508602500,0.0028687,101390.0,101380.0,0.15191048]
[1733508602933,0.15289821,101390.0,101380.0,0.15191048]
[1733508603612,0.15289821,101390.0,101380.0,0.00191048]
[1733508603866,0.15089821,101390.0,101380.0,0.00191048]
[1733508604123,0.10089821,101390.0,101380.0,0.00191048]
[1733508604576,0.10089821,101390.0,101380.0,0.00591048]
[1733508604830,0.12389821,101390.0,101380.0,0.00191048]
[1733508605050,0.023,101380.0,101350.0,0.031737]
[1733508605280,0.10002951,101370.0,101350.0,0.031737]
[1733508605515,0.10126273,101370.0,101350.0,0.031737]
[1733508605768,0.10002951,101370.0,101350.0,0.031737]
[1733508606394,0.12984178,101390.0,101370.0,0.15]
[1733508606395,0.07994178,101390.0,101370.0,0.15]
[1733508606605,0.07994178,101390.0,101350.0,0.4054954]
[1733508606606,0.10126245,101380.0,101350.0,0.4054954]
[1733508606820,0.10126245,101380.0,101360.0,0.15]
[1733508607938,0.10002951,101380.0,101350.0,0.231737]
[1733508608183,0.00104178,101390.0,101370.0,0.15]
[1733508608395,0.10002951,101380.0,101370.0,0.15]
[1733508608620,0.10202951,101380.0,101350.0,0.4054954]
[1733508608841,0.10002951,101370.0,101360.0,0.15]
[1733508609739,0.10002951,101370.0,101350.0,0.185737]
[1733508609955,0.10002951,101370.0,101350.0,0.035737]
[1733508610384,0.10002951,101370.0,101360.0,0.004]
[1733508610838,0.10002951,101370.0,101330.0,0.0976]
[1733508610839,0.10002951,101370.0,101330.0,0.25697867]
[1733508611048,0.10002951,101370.0,101340.0,1.58978]
[1733508611281,0.10002951,101370.0,101360.0,0.15]
[1733508611916,0.10202951,101370.0,101360.0,0.15]
[1733508612355,0.10202951,101370.0,101340.0,0.2]
[1733508612540,0.10302951,101370.0,101360.0,0.15]
[1733508612782,0.002,101370.0,101360.0,0.15]
[1733508613036,0.002,101370.0,101360.0,0.29936]
[1733508613278,0.001,101370.0,101360.0,0.29936]
[1733508613916,0.00104178,101390.0,101360.0,0.29936]
[1733508614147,0.10107129,101390.0,101350.0,0.25]
[1733508614348,0.10107129,101390.0,101370.0,0.15]
[1733508614759,0.10002951,101380.0,101370.0,0.15]
[1733508615370,0.10002951,101380.0,101360.0,0.0017374]
[1733508615577,0.00123305,101370.0,101360.0,0.0017374]
[1733508615779,0.10002951,101370.0,101360.0,0.00162653]
[1733508615959,0.10102951,101370.0,101360.0,0.00162653]
[1733508616394,0.10102951,101370.0,101360.0,0.00362653]
[1733508616778,0.10002951,101370.0,101360.0,0.00162653]
[1733508617249,0.003,101370.0,101360.0,0.00162653]
[1733508617469,0.00104178,101390.0,101360.0,2.58327653]
[1733508617693,0.10107129,101390.0,101360.0,0.20162653]
[1733508618325,0.00104178,101390.0,101360.0,0.35165604]
[1733508618540,0.00104178,101390.0,101380.0,0.2]
[1733508618751,7.8e-07,101390.0,101380.0,1.29351751]
[1733508618999,7.8e-07,101390.0,101380.0,0.80574964]
[1733508619226,1.40029964,101420.0,101400.0,0.15]
[1733508619454,1.40087677,101420.0,101410.0,0.05]
[1733508619957,1.40087677,101420.0,101410.0,0.57356108]
[1733508620391,1.40087677,101420.0,101410.0,0.20986]
[1733508620829,1.40087677,101420.0,101410.0,0.41481401]
[1733508621324,1.40087677,101420.0,101410.0,0.04425293]
[1733508621547,1.40087677,101420.0,101410.0,0.41781401]
[1733508622299,1.40187677,101420.0,101410.0,0.04625293]
[1733508626258,1.45187677,101420.0,101410.0,0.04625293]
[1733508627498,1.45187677,101420.0,101410.0,0.16486]